[Event "December 12 Early 2023"]
[Site "https://www.chess.com"]
[Date "2023.12.12"]
[Round "6"]
[White "Hrebenshchykova, Yelyzaveta"]
[Black "Spata, German"]
[Result "0-1"]
[Board "97"]
[TimeControl "180+1"]
[WhiteFideId "14159899"]
[BlackFideId "113026"]
[WhiteElo "2472"]
[BlackElo "2604"]
[WhiteTeam "UKR"]
[BlackTeam "ARG"]
[WhiteClock "0:00:00"]
[BlackClock "0:00:42"]

1. e4 {[%clk 0:03:00]}  e6 {[%clk 0:02:46]} 2. d4 {[%clk 0:03:00]}  d5 {[%clk 0:02:43]} 3. Nc3 {[%clk 0:03:00]}  dxe4 {[%clk 0:02:40]} 4. Nxe4 {[%clk 0:03:00]}  Bd7 {[%clk 0:02:41]} 5. Nf3 {[%clk 0:02:44]}  Bc6 {[%clk 0:02:41]} 6. Bd3 {[%clk 0:02:44]}  Nd7 {[%clk 0:02:41]} 7. O-O {[%clk 0:02:35]}  Ngf6 {[%clk 0:02:42]} 8. Bg5 {[%clk 0:02:34]}  Be7 {[%clk 0:02:42]} 9. Ned2 {[%clk 0:02:12]}  b6 {[%clk 0:02:39]} 10. c4 {[%clk 0:02:09]}  O-O {[%clk 0:02:38]} 11. Qc2 {[%clk 0:02:01]}  Bb7 {[%clk 0:02:36]} 12. Rad1 {[%clk 0:01:41]}  h6 {[%clk 0:02:36]} 13. Bh4 {[%clk 0:01:38]}  c5 {[%clk 0:02:36]} 14. Rfe1 {[%clk 0:01:37]}  Re8 {[%clk 0:02:33]} 15. a3 {[%clk 0:01:15]}  Qc7 {[%clk 0:02:33]} 16. Bg3 {[%clk 0:01:14]}  Bd6 {[%clk 0:02:33]} 17. dxc5 {[%clk 0:01:13]}  Nxc5 {[%clk 0:02:27]} 18. Bf1 {[%clk 0:01:12]}  Bxg3 {[%clk 0:02:25]} 19. hxg3 {[%clk 0:01:11]}  Rac8 {[%clk 0:02:23]} 20. b4 {[%clk 0:01:05]}  Ncd7 {[%clk 0:02:23]} 21. Nd4 {[%clk 0:00:57]}  a6 {[%clk 0:02:19]} 22. N2b3 {[%clk 0:00:45]}  Red8 {[%clk 0:02:00]} 23. Rc1 {[%clk 0:00:39]}  Qb8 {[%clk 0:02:00]} 24. Bd3 {[%clk 0:00:32]}  Ne5 {[%clk 0:01:57]} 25. Bf1 {[%clk 0:00:29]}  Ned7 {[%clk 0:01:48]} 26. f3 {[%clk 0:00:29]}  Qxg3 {[%clk 0:01:46]} 27. Qf2 {[%clk 0:00:20]}  Qxf2+ {[%clk 0:01:46]} 28. Kxf2 {[%clk 0:00:21]}  Rc7 {[%clk 0:01:41]} 29. Rcd1 {[%clk 0:00:20]}  Rdc8 {[%clk 0:01:40]} 30. f4 {[%clk 0:00:19]}  g6 {[%clk 0:01:39]} 31. g3 {[%clk 0:00:20]}  h5 {[%clk 0:01:39]} 32. Bh3 {[%clk 0:00:18]}  Nf8 {[%clk 0:01:32]} 33. Bf1 {[%clk 0:00:18]}  Kg7 {[%clk 0:01:27]} 34. c5 {[%clk 0:00:18]}  Ne4+ {[%clk 0:01:18]} 35. Kg1 {[%clk 0:00:15]}  bxc5 {[%clk 0:01:18]} 36. bxc5 {[%clk 0:00:10]}  Nxc5 {[%clk 0:01:18]} 37. Na5 {[%clk 0:00:11]}  Bd5 {[%clk 0:01:12]} 38. Rb1 {[%clk 0:00:09]}  Nfd7 {[%clk 0:01:09]} 39. Rec1 {[%clk 0:00:05]}  Ne4 {[%clk 0:01:03]} 40. Rxc7 {[%clk 0:00:05]}  Rxc7 {[%clk 0:01:04]} 41. Re1 {[%clk 0:00:02]}  Nxg3 {[%clk 0:01:02]} 42. Bd3 {[%clk 0:00:02]}  Nc5 {[%clk 0:00:59]} 43. Bc2 {[%clk 0:00:01]}  Nf5 {[%clk 0:00:57]} 44. Bxf5 {[%clk 0:00:01]}  gxf5 {[%clk 0:00:58]} 45. Kf2 {[%clk 0:00:01]}  Ne4+ {[%clk 0:00:57]} 46. Ke3 {[%clk 0:00:02]}  Rc3+ {[%clk 0:00:57]} 47. Ke2 {[%clk 0:00:02]}  Rxa3 {[%clk 0:00:54]} 48. Rg1+ {[%clk 0:00:02]}  Kf6 {[%clk 0:00:54]} 49. Nac6 {[%clk 0:00:03]}  Ra2+ {[%clk 0:00:44]} 50. Ke3 {[%clk 0:00:03]}  Ra3+ {[%clk 0:00:43]} 51. Ke2 {[%clk 0:00:00]}  Bc4+ {[%clk 0:00:42]} 0-1

[Event "December 12 Early 2023"]
[Site "https://www.chess.com"]
[Date "2023.12.12"]
[Round "6"]
[White "Espinoza Villanueva, Rodrigo"]
[Black "Zivic, Dragan"]
[Result "1-0"]
[Board "100"]
[TimeControl "180+1"]
[WhiteFideId "5140188"]
[BlackFideId "904740"]
[WhiteElo "2586"]
[BlackElo "2414"]
[WhiteTeam "MEX"]
[BlackTeam "SRB"]
[WhiteClock "0:01:12"]
[BlackClock "0:00:22"]

1. Nf3 {[%clk 0:02:56]}  Nf6 {[%clk 0:02:59]} 2. b3 {[%clk 0:02:51]}  b6 {[%clk 0:02:50]} 3. Bb2 {[%clk 0:02:52]}  Bb7 {[%clk 0:02:51]} 4. c4 {[%clk 0:02:49]}  e6 {[%clk 0:02:51]} 5. d4 {[%clk 0:02:49]}  Bb4+ {[%clk 0:02:50]} 6. Nbd2 {[%clk 0:02:48]}  Ne4 {[%clk 0:02:48]} 7. Qc2 {[%clk 0:02:25]}  f5 {[%clk 0:02:46]} 8. a3 {[%clk 0:02:23]}  Bxd2+ {[%clk 0:02:42]} 9. Nxd2 {[%clk 0:02:24]}  O-O {[%clk 0:02:39]} 10. e3 {[%clk 0:02:22]}  d6 {[%clk 0:02:37]} 11. Bd3 {[%clk 0:02:19]}  Nxd2 {[%clk 0:02:36]} 12. Qxd2 {[%clk 0:02:20]}  Nd7 {[%clk 0:02:23]} 13. O-O-O {[%clk 0:02:18]}  Nf6 {[%clk 0:02:23]} 14. f3 {[%clk 0:02:17]}  Qe7 {[%clk 0:02:20]} 15. Rhe1 {[%clk 0:02:14]}  a5 {[%clk 0:02:17]} 16. Kb1 {[%clk 0:02:15]}  Rae8 {[%clk 0:02:08]} 17. h3 {[%clk 0:02:11]}  g6 {[%clk 0:02:08]} 18. Qc2 {[%clk 0:02:08]}  e5 {[%clk 0:02:07]} 19. dxe5 {[%clk 0:02:02]}  dxe5 {[%clk 0:02:05]} 20. e4 {[%clk 0:02:02]}  f4 {[%clk 0:02:02]} 21. Rc1 {[%clk 0:01:57]}  Nd7 {[%clk 0:02:01]} 22. Red1 {[%clk 0:01:53]}  Nc5 {[%clk 0:02:01]} 23. Bf1 {[%clk 0:01:52]}  Bc6 {[%clk 0:01:52]} 24. Ka2 {[%clk 0:01:43]}  Rd8 {[%clk 0:01:51]} 25. Rxd8 {[%clk 0:01:39]}  Rxd8 {[%clk 0:01:50]} 26. Rd1 {[%clk 0:01:39]}  Rxd1 {[%clk 0:01:50]} 27. Qxd1 {[%clk 0:01:40]}  a4 {[%clk 0:01:44]} 28. b4 {[%clk 0:01:40]}  Nb3 {[%clk 0:01:43]} 29. Qd3 {[%clk 0:01:35]}  Bb7 {[%clk 0:01:36]} 30. Bc3 {[%clk 0:01:35]}  c5 {[%clk 0:01:34]} 31. Qd1 {[%clk 0:01:32]}  Bc6 {[%clk 0:01:19]} 32. b5 {[%clk 0:01:27]}  Bb7 {[%clk 0:01:13]} 33. Bd3 {[%clk 0:01:24]}  Qd6 {[%clk 0:01:02]} 34. Bc2 {[%clk 0:01:24]}  Qxd1 {[%clk 0:01:02]} 35. Bxd1 {[%clk 0:01:25]}  Nd4 {[%clk 0:00:54]} 36. Bxa4 {[%clk 0:01:22]}  Kf7 {[%clk 0:00:52]} 37. Bd1 {[%clk 0:01:22]}  Bc8 {[%clk 0:00:50]} 38. a4 {[%clk 0:01:22]}  Be6 {[%clk 0:00:50]} 39. Bb3 {[%clk 0:01:15]}  Ke7 {[%clk 0:00:36]} 40. a5 {[%clk 0:01:14]}  bxa5 {[%clk 0:00:36]} 41. Bxa5 {[%clk 0:01:14]}  Kd7 {[%clk 0:00:30]} 42. Bc3 {[%clk 0:01:14]}  Kc7 {[%clk 0:00:27]} 43. Ka3 {[%clk 0:01:14]}  Kb6 {[%clk 0:00:27]} 44. Ka4 {[%clk 0:01:13]}  Nxb3 {[%clk 0:00:22]} 45. Kxb3 {[%clk 0:01:12]} 1-0

[Event "December 12 Early 2023"]
[Site "https://www.chess.com"]
[Date "2023.12.12"]
[Round "6"]
[White "Aghasiyev, Kamal"]
[Black "Gruzman, Ilya"]
[Result "1-0"]
[Board "101"]
[TimeControl "180+1"]
[WhiteFideId "13402854"]
[BlackFideId "2812703"]
[WhiteElo "2571"]
[BlackElo "2371"]
[WhiteTeam "AZE"]
[BlackTeam "ISR"]
[WhiteClock "0:00:06"]
[BlackClock "0:00:05"]

1. d4 {[%clk 0:02:59]}  Nf6 {[%clk 0:02:59]} 2. c4 {[%clk 0:02:57]}  g6 {[%clk 0:02:58]} 3. Nc3 {[%clk 0:02:57]}  Bg7 {[%clk 0:02:58]} 4. e4 {[%clk 0:02:56]}  O-O {[%clk 0:02:58]} 5. Be2 {[%clk 0:02:57]}  d6 {[%clk 0:02:58]} 6. Bg5 {[%clk 0:02:57]}  c5 {[%clk 0:02:58]} 7. d5 {[%clk 0:02:46]}  e6 {[%clk 0:02:58]} 8. Qd2 {[%clk 0:02:46]}  exd5 {[%clk 0:02:58]} 9. cxd5 {[%clk 0:02:46]}  Re8 {[%clk 0:02:58]} 10. f3 {[%clk 0:02:41]}  a6 {[%clk 0:02:57]} 11. a4 {[%clk 0:02:41]}  Nbd7 {[%clk 0:02:56]} 12. Nh3 {[%clk 0:02:39]}  Rb8 {[%clk 0:02:55]} 13. O-O {[%clk 0:02:37]}  Qc7 {[%clk 0:02:54]} 14. Nf2 {[%clk 0:02:33]}  c4 {[%clk 0:02:50]} 15. Rfc1 {[%clk 0:02:25]}  b5 {[%clk 0:02:48]} 16. axb5 {[%clk 0:02:25]}  axb5 {[%clk 0:02:49]} 17. b4 {[%clk 0:02:24]}  Ne5 {[%clk 0:02:19]} 18. Ra5 {[%clk 0:02:17]}  Bd7 {[%clk 0:02:17]} 19. Rca1 {[%clk 0:02:15]}  Nh5 {[%clk 0:02:08]} 20. Be3 {[%clk 0:02:14]}  Nd3 {[%clk 0:02:07]} 21. Ra7 {[%clk 0:02:09]}  Qc8 {[%clk 0:02:07]} 22. Bxd3 {[%clk 0:01:51]}  cxd3 {[%clk 0:02:07]} 23. R1a3 {[%clk 0:01:52]}  Rb7 {[%clk 0:01:36]} 24. Rxb7 {[%clk 0:01:03]}  Qxb7 {[%clk 0:01:37]} 25. Qxd3 {[%clk 0:01:00]}  Rc8 {[%clk 0:01:34]} 26. Nfd1 {[%clk 0:00:52]}  Qc7 {[%clk 0:01:23]} 27. g3 {[%clk 0:00:48]}  Bf6 {[%clk 0:01:16]} 28. Ra7 {[%clk 0:00:45]}  Qd8 {[%clk 0:01:07]} 29. Nxb5 {[%clk 0:00:34]}  Bxb5 {[%clk 0:01:05]} 30. Qxb5 {[%clk 0:00:34]}  Kg7 {[%clk 0:01:00]} 31. Qd7 {[%clk 0:00:25]}  Qxd7 {[%clk 0:00:49]} 32. Rxd7 {[%clk 0:00:24]}  Be5 {[%clk 0:00:47]} 33. b5 {[%clk 0:00:19]}  Rc2 {[%clk 0:00:38]} 34. b6 {[%clk 0:00:16]}  Rc4 {[%clk 0:00:30]} 35. Rc7 {[%clk 0:00:13]}  Rb4 {[%clk 0:00:30]} 36. Kf1 {[%clk 0:00:10]}  Nf6 {[%clk 0:00:29]} 37. Ke2 {[%clk 0:00:09]}  h5 {[%clk 0:00:25]} 38. b7 {[%clk 0:00:08]}  Ne8 {[%clk 0:00:10]} 39. Re7 {[%clk 0:00:08]}  Bf6 {[%clk 0:00:04]} 40. Rxe8 {[%clk 0:00:07]}  Rxb7 {[%clk 0:00:04]} 41. f4 {[%clk 0:00:06]}  Rc7 {[%clk 0:00:02]} 42. e5 {[%clk 0:00:07]}  dxe5 {[%clk 0:00:03]} 43. fxe5 {[%clk 0:00:07]}  Be7 {[%clk 0:00:03]} 44. d6 {[%clk 0:00:07]}  Bxd6 {[%clk 0:00:03]} 45. exd6 {[%clk 0:00:07]}  Rd7 {[%clk 0:00:04]} 46. Bf4 {[%clk 0:00:06]}  g5 {[%clk 0:00:03]} 47. Bxg5 {[%clk 0:00:05]}  Rxd6 {[%clk 0:00:03]} 48. Ne3 {[%clk 0:00:05]}  Rg6 {[%clk 0:00:02]} 49. Bf4 {[%clk 0:00:05]}  Ra6 {[%clk 0:00:03]} 50. Kf3 {[%clk 0:00:05]}  Ra2 {[%clk 0:00:03]} 51. Re4 {[%clk 0:00:05]}  Rxh2 {[%clk 0:00:03]} 52. Nf5+ {[%clk 0:00:06]}  Kg6 {[%clk 0:00:02]} 53. Nh4+ {[%clk 0:00:07]}  Kf6 {[%clk 0:00:03]} 54. Ra4 {[%clk 0:00:06]}  Rb2 {[%clk 0:00:02]} 55. Ra6+ {[%clk 0:00:07]}  Ke7 {[%clk 0:00:02]} 56. Nf5+ {[%clk 0:00:07]}  Kd7 {[%clk 0:00:02]} 57. Ra7+ {[%clk 0:00:06]}  Ke6 {[%clk 0:00:03]} 58. Ng7+ {[%clk 0:00:06]}  Kf6 {[%clk 0:00:03]} 59. Nxh5+ {[%clk 0:00:07]}  Kg6 {[%clk 0:00:03]} 60. g4 {[%clk 0:00:05]}  Rb3+ {[%clk 0:00:03]} 61. Kg2 {[%clk 0:00:05]}  Rb2+ {[%clk 0:00:03]} 62. Kh3 {[%clk 0:00:05]}  Rb3+ {[%clk 0:00:04]} 63. Ng3 {[%clk 0:00:06]}  Rb6 {[%clk 0:00:03]} 64. Rd7 {[%clk 0:00:05]}  Rb4 {[%clk 0:00:03]} 65. Rd6+ {[%clk 0:00:05]}  f6 {[%clk 0:00:03]} 66. Nh5 {[%clk 0:00:05]}  Rb3+ {[%clk 0:00:03]} 67. Kh4 {[%clk 0:00:06]}  Rb1 {[%clk 0:00:02]} 68. Rxf6+ {[%clk 0:00:06]}  Kh7 {[%clk 0:00:03]} 69. Kg5 {[%clk 0:00:06]}  Rb5+ {[%clk 0:00:03]} 70. Rf5 {[%clk 0:00:07]}  Rb7 {[%clk 0:00:04]} 71. Nf6+ {[%clk 0:00:07]}  Kh8 {[%clk 0:00:04]} 72. Be5 {[%clk 0:00:06]}  Ra7 {[%clk 0:00:03]} 73. Nh5+ {[%clk 0:00:06]}  Kg8 {[%clk 0:00:02]} 74. Rf6 {[%clk 0:00:06]}  Ra5 {[%clk 0:00:01]} 75. Kf5 {[%clk 0:00:06]}  Ra7 {[%clk 0:00:01]} 76. g5 {[%clk 0:00:06]}  Kh7 {[%clk 0:00:01]} 77. Rh6+ {[%clk 0:00:05]}  Kg8 {[%clk 0:00:01]} 78. Rh8+ {[%clk 0:00:06]}  Kf7 {[%clk 0:00:02]} 79. Rh7+ {[%clk 0:00:06]}  Kg8 {[%clk 0:00:03]} 80. Rxa7 {[%clk 0:00:07]}  Kf8 {[%clk 0:00:03]} 81. Bd6+ {[%clk 0:00:06]}  Ke8 {[%clk 0:00:04]} 82. Ke6 {[%clk 0:00:06]}  Kd8 {[%clk 0:00:05]} 83. Ra8# {[%clk 0:00:06]} 1-0

[Event "December 12 Early 2023"]
[Site "https://www.chess.com"]
[Date "2023.12.12"]
[Round "6"]
[White "Santos Flores, Alberto"]
[Black "Tuleyeva-Aketayeva, Dana"]
[Result "1-0"]
[Board "103"]
[TimeControl "180+1"]
[WhiteFideId "3601234"]
[BlackFideId "13701932"]
[WhiteElo "2550"]
[BlackElo "2323"]
[WhiteTeam "ECU"]
[BlackTeam "KAZ"]
[WhiteClock "0:02:11"]
[BlackClock "0:00:00"]

1. e4 {[%clk 0:03:00]}  c5 {[%clk 0:02:59]} 2. Nf3 {[%clk 0:03:00]}  Nc6 {[%clk 0:02:59]} 3. Nc3 {[%clk 0:03:00]}  g6 {[%clk 0:02:53]} 4. d4 {[%clk 0:03:00]}  cxd4 {[%clk 0:02:52]} 5. Nxd4 {[%clk 0:03:01]}  Bg7 {[%clk 0:02:52]} 6. Be3 {[%clk 0:03:01]}  Nf6 {[%clk 0:02:50]} 7. Bc4 {[%clk 0:03:01]}  O-O {[%clk 0:02:48]} 8. Bb3 {[%clk 0:03:01]}  d6 {[%clk 0:02:41]} 9. f3 {[%clk 0:03:01]}  Bd7 {[%clk 0:02:27]} 10. Qd2 {[%clk 0:03:01]}  Re8 {[%clk 0:02:13]} 11. h4 {[%clk 0:02:56]}  a5 {[%clk 0:01:42]} 12. a4 {[%clk 0:02:51]}  Nxd4 {[%clk 0:01:19]} 13. Bxd4 {[%clk 0:02:51]}  e5 {[%clk 0:01:19]} 14. Be3 {[%clk 0:02:50]}  Be6 {[%clk 0:01:19]} 15. Bxe6 {[%clk 0:02:46]}  fxe6 {[%clk 0:01:17]} 16. O-O-O {[%clk 0:02:45]}  d5 {[%clk 0:00:37]} 17. exd5 {[%clk 0:02:44]}  exd5 {[%clk 0:00:35]} 18. Nxd5 {[%clk 0:02:44]}  Kh8 {[%clk 0:00:36]} 19. Bg5 {[%clk 0:02:37]}  Qxd5 {[%clk 0:00:11]} 20. Qxd5 {[%clk 0:02:36]}  Nxd5 {[%clk 0:00:12]} 21. Rxd5 {[%clk 0:02:37]}  Rac8 {[%clk 0:00:10]} 22. Bd2 {[%clk 0:02:20]}  Rc4 {[%clk 0:00:09]} 23. b3 {[%clk 0:02:19]}  Rc6 {[%clk 0:00:08]} 24. Bxa5 {[%clk 0:02:16]}  Rec8 {[%clk 0:00:07]} 25. c4 {[%clk 0:02:15]}  Bh6+ {[%clk 0:00:03]} 26. Kc2 {[%clk 0:02:14]}  Bf4 {[%clk 0:00:03]} 27. Bc3 {[%clk 0:02:14]}  Kg8 {[%clk 0:00:01]} 28. Bxe5 {[%clk 0:02:13]}  Bxe5 {[%clk 0:00:01]} 29. Rxe5 {[%clk 0:02:14]}  Rd8 {[%clk 0:00:01]} 30. Rd1 {[%clk 0:02:13]}  Rcd6 {[%clk 0:00:01]} 31. Rxd6 {[%clk 0:02:12]}  Rxd6 {[%clk 0:00:02]} 32. Rd5 {[%clk 0:02:12]}  Rf6 {[%clk 0:00:01]} 33. Kc3 {[%clk 0:02:11]}  Rf4 {[%clk 0:00:00]} 34. Rd4 {[%clk 0:02:11]} 1-0

[Event "December 12 Early 2023"]
[Site "https://www.chess.com"]
[Date "2023.12.12"]
[Round "6"]
[White "Pertinez Soria, Juan Luis"]
[Black "Estrada Nieto, Julian"]
[Result "0-1"]
[Board "105"]
[TimeControl "180+1"]
[WhiteFideId "2225620"]
[BlackFideId "5101018"]
[WhiteElo "2219"]
[BlackElo "2529"]
[WhiteTeam "ESP"]
[BlackTeam "ESP"]
[WhiteClock "0:00:00"]
[BlackClock "0:00:33"]

1. e4 {[%clk 0:03:00]}  e5 {[%clk 0:02:59]} 2. Nf3 {[%clk 0:02:57]}  Nc6 {[%clk 0:02:59]} 3. Bc4 {[%clk 0:02:55]}  Bc5 {[%clk 0:02:59]} 4. d3 {[%clk 0:02:55]}  Nf6 {[%clk 0:02:58]} 5. c3 {[%clk 0:02:56]}  d6 {[%clk 0:02:59]} 6. Nbd2 {[%clk 0:02:56]}  a6 {[%clk 0:02:59]} 7. Bb3 {[%clk 0:02:53]}  Ba7 {[%clk 0:02:58]} 8. h3 {[%clk 0:02:52]}  h6 {[%clk 0:02:58]} 9. a4 {[%clk 0:02:51]}  Be6 {[%clk 0:02:54]} 10. Bc2 {[%clk 0:02:48]}  d5 {[%clk 0:02:49]} 11. Qe2 {[%clk 0:02:47]}  d4 {[%clk 0:02:47]} 12. Nc4 {[%clk 0:02:30]}  Bxc4 {[%clk 0:02:38]} 13. dxc4 {[%clk 0:02:31]}  Nd7 {[%clk 0:02:38]} 14. O-O {[%clk 0:02:28]}  O-O {[%clk 0:02:37]} 15. Rd1 {[%clk 0:02:28]}  Qe7 {[%clk 0:02:32]} 16. Bd2 {[%clk 0:02:06]}  Rfd8 {[%clk 0:02:20]} 17. Be1 {[%clk 0:02:03]}  Nf8 {[%clk 0:02:03]} 18. Ra3 {[%clk 0:01:46]}  Ne6 {[%clk 0:02:01]} 19. g3 {[%clk 0:01:36]}  dxc3 {[%clk 0:01:56]} 20. Bxc3 {[%clk 0:01:30]}  Ncd4 {[%clk 0:01:56]} 21. Bxd4 {[%clk 0:01:18]}  Bxd4 {[%clk 0:01:55]} 22. Rb3 {[%clk 0:01:01]}  c6 {[%clk 0:01:45]} 23. Ne1 {[%clk 0:00:42]}  Rd7 {[%clk 0:01:37]} 24. Bb1 {[%clk 0:00:38]}  Rad8 {[%clk 0:01:36]} 25. Rbd3 {[%clk 0:00:33]}  Nc5 {[%clk 0:01:32]} 26. R3d2 {[%clk 0:00:18]}  Nxa4 {[%clk 0:01:32]} 27. Kg2 {[%clk 0:00:19]}  a5 {[%clk 0:01:26]} 28. f4 {[%clk 0:00:15]}  Nc5 {[%clk 0:01:21]} 29. Nf3 {[%clk 0:00:14]}  a4 {[%clk 0:01:15]} 30. fxe5 {[%clk 0:00:11]}  Bxe5 {[%clk 0:01:14]} 31. Nxe5 {[%clk 0:00:11]}  Qxe5 {[%clk 0:01:13]} 32. Rxd7 {[%clk 0:00:11]}  Rxd7 {[%clk 0:01:13]} 33. Rxd7 {[%clk 0:00:12]}  Nxd7 {[%clk 0:01:14]} 34. Qd2 {[%clk 0:00:10]}  Nc5 {[%clk 0:01:12]} 35. Qd8+ {[%clk 0:00:10]}  Kh7 {[%clk 0:01:12]} 36. Qd2 {[%clk 0:00:08]}  Nxe4 {[%clk 0:01:06]} 37. Qc2 {[%clk 0:00:06]}  f5 {[%clk 0:01:06]} 38. g4 {[%clk 0:00:07]}  Qg3+ {[%clk 0:01:05]} 39. Kf1 {[%clk 0:00:08]}  Qxh3+ {[%clk 0:01:04]} 40. Ke1 {[%clk 0:00:08]}  Qh1+ {[%clk 0:01:03]} 41. Ke2 {[%clk 0:00:08]}  Qg2+ {[%clk 0:01:02]} 42. Ke3 {[%clk 0:00:06]}  Qg1+ {[%clk 0:00:52]} 43. Kf4 {[%clk 0:00:00]}  Qxg4+ {[%clk 0:00:46]} 44. Ke5 {[%clk 0:00:01]}  Qg5 {[%clk 0:00:38]} 45. Ke6 {[%clk 0:00:01]}  Qf6+ {[%clk 0:00:33]} 46. Kd7 {[%clk 0:00:00]}  Nc5+ {[%clk 0:00:33]} 0-1

[Event "December 12 Early 2023"]
[Site "https://www.chess.com"]
[Date "2023.12.12"]
[Round "6"]
[White "Batsiashvili, Nino"]
[Black "Monpeurt, Cyrielle"]
[Result "0-1"]
[Board "106"]
[TimeControl "180+1"]
[WhiteFideId "13602993"]
[BlackFideId "677400"]
[WhiteElo "2526"]
[BlackElo "2261"]
[WhiteTeam "GEO"]
[BlackTeam "FRA"]
[WhiteClock "0:00:00"]
[BlackClock "0:00:34"]

1. e4 {[%clk 0:03:00]}  d5 {[%clk 0:03:00]} 2. exd5 {[%clk 0:03:00]}  Qxd5 {[%clk 0:03:01]} 3. Nc3 {[%clk 0:03:00]}  Qd6 {[%clk 0:03:01]} 4. d4 {[%clk 0:03:00]}  Nf6 {[%clk 0:03:01]} 5. Bc4 {[%clk 0:02:58]}  Nc6 {[%clk 0:02:57]} 6. Nge2 {[%clk 0:02:58]}  Bg4 {[%clk 0:02:52]} 7. h3 {[%clk 0:02:51]}  Bh5 {[%clk 0:02:51]} 8. g4 {[%clk 0:02:48]}  Bg6 {[%clk 0:02:51]} 9. Bf4 {[%clk 0:02:32]}  Qb4 {[%clk 0:02:51]} 10. Bb3 {[%clk 0:02:26]}  O-O-O {[%clk 0:02:33]} 11. a3 {[%clk 0:02:20]}  Qb6 {[%clk 0:02:31]} 12. d5 {[%clk 0:02:09]}  Na5 {[%clk 0:02:23]} 13. Na4 {[%clk 0:01:50]}  Qa6 {[%clk 0:02:03]} 14. Ba2 {[%clk 0:01:49]}  Nxd5 {[%clk 0:01:51]} 15. Bxd5 {[%clk 0:01:48]}  e6 {[%clk 0:01:45]} 16. Bxe6+ {[%clk 0:01:03]}  Qxe6 {[%clk 0:01:35]} 17. Qc1 {[%clk 0:01:03]}  Qe4 {[%clk 0:01:28]} 18. Rg1 {[%clk 0:00:57]}  Qxa4 {[%clk 0:01:25]} 19. Rg3 {[%clk 0:00:51]}  Bd6 {[%clk 0:01:19]} 20. b3 {[%clk 0:00:45]}  Qc6 {[%clk 0:01:10]} 21. Bxd6 {[%clk 0:00:23]}  Rxd6 {[%clk 0:01:07]} 22. Kf1 {[%clk 0:00:16]}  Qh1+ {[%clk 0:01:00]} 23. Ng1 {[%clk 0:00:15]}  Qe4 {[%clk 0:00:54]} 24. Rc3 {[%clk 0:00:13]}  Rhd8 {[%clk 0:00:51]} 25. Nf3 {[%clk 0:00:11]}  Nc6 {[%clk 0:00:47]} 26. b4 {[%clk 0:00:11]}  Nd4 {[%clk 0:00:45]} 27. Nxd4 {[%clk 0:00:08]}  Rxd4 {[%clk 0:00:42]} 28. Kg1 {[%clk 0:00:00]}  h5 {[%clk 0:00:34]} 0-1

[Event "December 12 Early 2023"]
[Site "https://www.chess.com"]
[Date "2023.12.12"]
[Round "6"]
[White "Wu, Derek"]
[Black "Lopusiewicz, Piotr"]
[Result "1-0"]
[Board "108"]
[TimeControl "180+1"]
[WhiteFideId "30914558"]
[BlackFideId "1116029"]
[WhiteElo "2692"]
[BlackElo "2447"]
[WhiteTeam "USA"]
[BlackTeam "POL"]
[WhiteClock "0:00:10"]
[BlackClock "0:00:01"]

1. e4 {[%clk 0:03:00]}  c5 {[%clk 0:02:59]} 2. Nf3 {[%clk 0:03:01]}  e6 {[%clk 0:02:59]} 3. b3 {[%clk 0:02:59]}  d5 {[%clk 0:02:57]} 4. exd5 {[%clk 0:02:58]}  Qxd5 {[%clk 0:02:56]} 5. Nc3 {[%clk 0:02:57]}  Qd7 {[%clk 0:02:55]} 6. Bb5 {[%clk 0:02:55]}  Nc6 {[%clk 0:02:54]} 7. Ne5 {[%clk 0:02:54]}  Qc7 {[%clk 0:02:53]} 8. Nxc6 {[%clk 0:02:54]}  bxc6 {[%clk 0:02:53]} 9. Bc4 {[%clk 0:02:42]}  Be7 {[%clk 0:02:51]} 10. O-O {[%clk 0:02:40]}  Bf6 {[%clk 0:02:51]} 11. Ba3 {[%clk 0:02:38]}  Qa5 {[%clk 0:02:46]} 12. Na4 {[%clk 0:02:37]}  Ne7 {[%clk 0:02:45]} 13. Bxc5 {[%clk 0:02:31]}  Bxa1 {[%clk 0:02:44]} 14. Qxa1 {[%clk 0:02:32]}  f6 {[%clk 0:02:40]} 15. Re1 {[%clk 0:02:12]}  Qxd2 {[%clk 0:02:36]} 16. Bxe6 {[%clk 0:02:03]}  Bxe6 {[%clk 0:02:33]} 17. Rxe6 {[%clk 0:02:04]}  O-O-O {[%clk 0:02:14]} 18. Rxe7 {[%clk 0:02:02]}  Qxc2 {[%clk 0:02:07]} 19. Re1 {[%clk 0:01:56]}  Rd5 {[%clk 0:02:02]} 20. Bxa7 {[%clk 0:01:46]}  Kb7 {[%clk 0:01:57]} 21. Be3 {[%clk 0:01:39]}  Rhd8 {[%clk 0:01:56]} 22. Nc3 {[%clk 0:01:34]}  Rd3 {[%clk 0:01:47]} 23. h4 {[%clk 0:01:06]}  Qxc3 {[%clk 0:01:43]} 24. Qxc3 {[%clk 0:00:57]}  Rxc3 {[%clk 0:01:43]} 25. Re2 {[%clk 0:00:55]}  Re8 {[%clk 0:01:31]} 26. Kh2 {[%clk 0:00:55]}  Rd3 {[%clk 0:01:26]} 27. Kg3 {[%clk 0:00:53]}  Re4 {[%clk 0:01:19]} 28. Rc2 {[%clk 0:00:50]}  f5 {[%clk 0:01:13]} 29. h5 {[%clk 0:00:39]}  f4+ {[%clk 0:00:58]} 30. Kf3 {[%clk 0:00:39]}  Rb4 {[%clk 0:00:57]} 31. Ke2 {[%clk 0:00:39]}  Rd5 {[%clk 0:00:52]} 32. Bc5 {[%clk 0:00:35]}  Re4+ {[%clk 0:00:48]} 33. Kf3 {[%clk 0:00:35]}  Ree5 {[%clk 0:00:48]} 34. b4 {[%clk 0:00:34]}  Rxh5 {[%clk 0:00:47]} 35. Kxf4 {[%clk 0:00:35]}  Rh4+ {[%clk 0:00:44]} 36. Kg3 {[%clk 0:00:35]}  Re4 {[%clk 0:00:43]} 37. f3 {[%clk 0:00:35]}  Re6 {[%clk 0:00:42]} 38. a4 {[%clk 0:00:35]}  h5 {[%clk 0:00:42]} 39. a5 {[%clk 0:00:35]}  Rde5 {[%clk 0:00:33]} 40. Ra2 {[%clk 0:00:35]}  Ka6 {[%clk 0:00:31]} 41. Rd2 {[%clk 0:00:34]}  Re2 {[%clk 0:00:31]} 42. Rd7 {[%clk 0:00:34]}  Rg6+ {[%clk 0:00:31]} 43. Kf4 {[%clk 0:00:33]}  Rexg2 {[%clk 0:00:22]} 44. Ra7+ {[%clk 0:00:32]}  Kb5 {[%clk 0:00:22]} 45. Rb7+ {[%clk 0:00:32]}  Kc4 {[%clk 0:00:22]} 46. a6 {[%clk 0:00:30]}  Rf6+ {[%clk 0:00:18]} 47. Ke3 {[%clk 0:00:24]}  Re6+ {[%clk 0:00:17]} 48. Kf4 {[%clk 0:00:24]}  Ra2 {[%clk 0:00:14]} 49. a7 {[%clk 0:00:22]}  h4 {[%clk 0:00:14]} 50. Rxg7 {[%clk 0:00:21]}  h3 {[%clk 0:00:13]} 51. Rh7 {[%clk 0:00:22]}  Rf6+ {[%clk 0:00:06]} 52. Ke4 {[%clk 0:00:15]}  Re6+ {[%clk 0:00:04]} 53. Kf5 {[%clk 0:00:16]}  Re8 {[%clk 0:00:02]} 54. Rxh3 {[%clk 0:00:15]}  Ra8 {[%clk 0:00:03]} 55. Rh7 {[%clk 0:00:14]}  Kd5 {[%clk 0:00:04]} 56. f4 {[%clk 0:00:14]}  Kc4 {[%clk 0:00:04]} 57. Rd7 {[%clk 0:00:14]}  Re2 {[%clk 0:00:05]} 58. Kf6 {[%clk 0:00:15]}  Kb5 {[%clk 0:00:06]} 59. f5 {[%clk 0:00:14]}  Ree8 {[%clk 0:00:06]} 60. Rb7+ {[%clk 0:00:13]}  Kc4 {[%clk 0:00:06]} 61. Re7 {[%clk 0:00:12]}  Rf8+ {[%clk 0:00:06]} 62. Ke6 {[%clk 0:00:12]}  Rg8 {[%clk 0:00:05]} 63. f6 {[%clk 0:00:13]}  Rad8 {[%clk 0:00:04]} 64. f7 {[%clk 0:00:13]}  Rh8 {[%clk 0:00:04]} 65. Rd7 {[%clk 0:00:12]}  Rc8 {[%clk 0:00:04]} 66. f8=Q {[%clk 0:00:11]}  Rcxf8 {[%clk 0:00:04]} 67. Bxf8 {[%clk 0:00:12]}  Rxf8 {[%clk 0:00:04]} 68. Rb7 {[%clk 0:00:12]}  c5 {[%clk 0:00:03]} 69. bxc5 {[%clk 0:00:10]}  Kxc5 {[%clk 0:00:01]} 70. Rb8 {[%clk 0:00:10]} 1-0